bitfinex/quotes_SOLUSD_20250624
["timestamp","ask_amount","ask_price","bid_price","bid_amount"]
[1750786761193,7.3,144.64,144.63,6.59816781]
[1750786766496,7.3,144.64,144.63,13.51236265]
[1750786766816,6.91201709,144.68,144.63,13.51236265]
[1750786767027,14.11151683,144.69,144.66,6.59816781]
[1750786767514,14.11151683,144.69,144.6,24.20469737]
[1750786767703,14.11151683,144.69,144.66,6.59816781]
[1750786768719,37.9880038,144.69,144.6,6.91562932]
[1750786768906,37.9880038,144.69,144.64,6.59816781]
[1750786769717,6.59816781,144.68,144.64,6.59816781]
[1750786770421,37.9880038,144.69,144.64,6.59816781]
[1750786771017,6.59816781,144.68,144.64,6.59816781]
[1750786771522,6.91228312,144.67,144.64,6.59816781]
[1750786771816,6.59816781,144.65,144.58,6.4809]
[1750786772011,6.59816781,144.65,144.6,6.59816781]
[1750786772523,24.19299093,144.67,144.61,6.59816781]
[1750786772719,6.59816781,144.66,144.61,6.59816781]
[1750786773216,30.79115874,144.67,144.63,6.59816781]
[1750786774005,30.79115874,144.67,144.62,6.59816781]
[1750786775118,6.59816781,144.66,144.62,6.59816781]
[1750786775626,13.51140666,144.65,144.61,6.59816781]
[1750786775803,13.51140666,144.65,144.58,13.39734036]
[1750786776006,13.51140666,144.65,144.61,6.59816781]
[1750786776714,30.79450379,144.65,144.61,6.59816781]
[1750786777626,24.19633598,144.65,144.61,6.59816781]
[1750786778501,6.91323885,144.65,144.63,6.59816781]
[1750786778836,6.91276095,144.66,144.63,6.59816781]
[1750786779818,6.91276095,144.66,144.59,6.91610761]
[1750786780027,6.91276095,144.66,144.62,6.59816781]
[1750786780332,6.91276095,144.66,144.64,6.59816781]
[1750786780826,32.91238061,144.67,144.65,6.59816781]
[1750786781002,6.91212789,144.68,144.66,6.59816781]
[1750786781205,6.91212789,144.68,144.67,6.59816781]
[1750786782105,6.91212789,144.68,144.66,6.59816781]
[1750786782826,14.11152848,144.69,144.67,6.59816781]
[1750786783502,14.11152848,144.69,144.63,8.42709507]
[1750786783702,14.11152848,144.69,144.67,6.59816781]
[1750786784314,7.2,144.69,144.67,6.59816781]
[1750786784536,7.2,144.69,144.68,6.59816781]
[1750786785032,14.11132766,144.69,144.67,6.59816781]
[1750786785214,14.11132766,144.69,144.63,8.42710077]
[1750786785411,14.11132766,144.69,144.66,6.59816781]
[1750786786316,14.11132766,144.69,144.67,6.59816781]
[1750786787741,14.11132766,144.69,144.63,8.42710077]
[1750786787742,7.2,144.69,144.68,6.59816781]
[1750786788336,14.11132766,144.69,144.66,6.59816781]
[1750786789021,14.11132766,144.69,144.65,6.59816781]
[1750786789224,14.11132766,144.69,144.66,6.59816781]
[1750786789951,14.11132766,144.69,144.67,6.59816781]
[1750786790240,14.11136397,144.69,144.67,6.59816781]
[1750786790930,7.2,144.69,144.67,6.59816781]
[1750786791512,14.11142209,144.69,144.67,6.59816781]
[1750786793615,14.11142209,144.69,144.63,1.5131]
[1750786793841,14.11142209,144.69,144.66,6.59816781]
[1750786794341,7.2,144.69,144.67,6.59816781]
[1750786794551,7.2,144.69,144.68,6.59816781]
[1750786797030,6.90968903,144.73,144.68,13.50997317]
[1750786797235,6.90968903,144.73,144.71,6.59816781]
[1750786797840,6.90968903,144.73,144.68,6.91180536]
[1750786798051,6.90968903,144.73,144.7,6.59816781]
[1750786798218,14.02896017,144.74,144.71,6.59816781]
[1750786798544,7.12,144.74,144.73,6.59816781]
[1750786798742,18.64964886,144.79,144.73,6.59816781]
[1750786798743,32.90703135,144.78,144.73,6.59816781]
[1750786799041,11.99137135,144.78,144.75,6.59816781]
[1750786799236,6.90703135,144.78,144.74,6.59816781]
[1750786799640,6.90703135,144.78,144.75,6.59816781]
[1750786799943,6.90703135,144.78,144.74,6.59816781]
[1750786800831,6.90703135,144.78,144.75,6.59816781]
[1750786801222,14.02675423,144.79,144.73,13.43463963]
[1750786801436,7.12,144.79,144.74,1.5738]
[1750786801722,20.62472213,144.79,144.74,1.5738]
[1750786801925,20.62472213,144.79,144.74,6.59816781]
[1750786802145,14.02655432,144.79,144.73,6.90937521]
[1750786802454,14.02655432,144.79,144.75,6.59816781]
[1750786802630,14.02655432,144.79,144.76,6.59816781]
[1750786803029,14.02673086,144.79,144.77,6.59816781]
[1750786803630,14.02673086,144.79,144.75,6.59816781]
[1750786803842,20.62489867,144.79,144.75,6.59816781]
[1750786804050,14.02673086,144.79,144.75,6.59816781]
[1750786804931,37.89128447,144.79,144.74,6.59816781]
[1750786805237,6.59816781,144.78,144.74,6.59816781]
[1750786805541,31.29311666,144.79,144.74,6.59816781]
[1750786805542,37.89128447,144.79,144.74,6.59816781]
[1750786806234,13.50567627,144.77,144.73,6.59816781]
[1750786806841,6.90750846,144.77,144.74,6.59816781]
[1750786808221,6.90703135,144.78,144.74,6.59816781]
[1750786808424,13.50519916,144.78,144.7,8.48451869]
[1750786808620,30.77277755,144.78,144.74,6.59816781]
[1750786809053,24.17460974,144.78,144.74,6.59816781]
[1750786809430,6.59816781,144.77,144.7,1.5738]
[1750786809630,6.59816781,144.77,144.72,6.59816781]
[1750786809854,6.59816781,144.77,144.7,8.48460488]
[1750786810032,6.59816781,144.77,144.72,6.59816781]
[1750786810356,6.90798563,144.76,144.73,6.59816781]
[1750786812160,6.90750846,144.77,144.73,6.59816781]
[1750786812343,30.77444742,144.77,144.73,6.59816781]
[1750786813937,30.77444742,144.77,144.72,6.59816781]
[1750786814485,30.77444742,144.77,144.67,1.5167]
[1750786814486,6.59816781,144.75,144.67,1.5167]
[1750786814638,6.59816781,144.72,144.68,6.59816781]
[1750786815355,13.71816781,144.72,144.68,6.59816781]
[1750786815547,6.59816781,144.71,144.67,1.5167]
[1750786815757,7.12,144.72,144.63,28.97233582]
[1750786815758,6.59816781,144.7,144.66,6.59816781]
[1750786816060,6.91132766,144.69,144.66,6.59816781]
[1750786816453,6.91132766,144.69,144.67,6.59816781]
[1750786817353,6.91085003,144.7,144.67,6.59816781]
[1750786817662,13.50901784,144.7,144.65,6.59816781]
[1750786818056,13.50901784,144.7,144.66,6.59816781]
[1750786818254,6.91085003,144.7,144.66,6.59816781]
[1750786818874,13.50901784,144.7,144.65,6.59816781]
[1750786819263,13.50901784,144.7,144.66,6.59816781]
[1750786820273,13.50901784,144.7,144.63,1.5068]
[1750786820274,13.50901784,144.7,144.65,6.59816781]
[1750786820573,30.78614292,144.7,144.65,6.59816781]
[1750786820762,30.78614292,144.7,144.63,1.5068]
[1750786820763,6.59816781,144.68,144.63,6.59816781]
[1750786821147,6.59816781,144.68,144.64,6.59816781]
[1750786821767,6.91228312,144.67,144.64,6.59816781]
[1750786822013,14.6644,144.72,144.65,6.59816781]
[1750786822279,6.59816781,144.7,144.66,6.59816781]
[1750786822870,13.50854027,144.71,144.62,6.91460302]
[1750786823186,30.78447144,144.71,144.66,6.59816781]
[1750786823387,13.50854027,144.71,144.66,6.59816781]
[1750786823674,13.50854027,144.71,144.67,6.59816781]
[1750786823864,6.91037246,144.71,144.69,6.59816781]
[1750786824074,7.12,144.72,144.7,6.59816781]
[1750786824259,7.12,144.72,144.71,6.59816781]
[1750786824678,7.12,144.72,144.67,6.2761]
[1750786824976,7.12,144.72,144.7,6.59816781]
[1750786825178,14.02991443,144.72,144.7,6.59816781]
[1750786825755,20.62808224,144.72,144.68,6.59816781]
[1750786826182,6.59816781,144.71,144.66,1.6003]
[1750786826480,6.59816781,144.71,144.67,6.59816781]
[1750786826653,6.59816781,144.71,144.66,8.19846781]
[1750786827367,6.91085003,144.7,144.66,8.19846781]
[1750786827568,6.91085003,144.7,144.67,6.59816781]
[1750786827971,6.91085003,144.7,144.66,1.6003]
[1750786828173,6.91085003,144.7,144.67,6.59816781]
[1750786829065,13.50854027,144.71,144.67,6.59816781]
[1750786829526,6.91037246,144.71,144.68,6.59816781]
[1750786832070,6.91037246,144.71,144.67,6.59816781]
[1750786834184,6.59816781,144.69,144.65,6.59816781]
[1750786834394,24.18630363,144.71,144.62,34.54250093]
[1750786834395,6.59816781,144.68,144.64,6.59816781]
[1750786834758,30.78447144,144.71,144.66,6.59816781]
[1750786834963,30.78447144,144.71,144.67,6.59816781]
[1750786835163,30.78447144,144.71,144.66,6.59816781]
[1750786835470,13.50854027,144.71,144.66,6.59816781]
[1750786835685,6.91037246,144.71,144.67,6.59816781]
[1750786835870,13.50854027,144.71,144.67,6.59816781]
[1750786836071,13.50854027,144.71,144.66,6.59816781]
[1750786836292,30.78447144,144.71,144.66,6.59816781]
[1750786838899,6.59816781,144.7,144.66,6.59816781]
[1750786839374,6.59816781,144.7,144.62,34.5424532]
[1750786839689,6.59816781,144.69,144.64,6.59816781]
[1750786840568,6.91180536,144.68,144.64,6.59816781]
[1750786841377,6.91180536,144.68,144.65,6.59816781]
[1750786841584,33.12,144.72,144.63,6.9141489]
[1750786841585,33.12,144.72,144.67,6.59816781]
[1750786841790,39.71816781,144.72,144.67,6.59816781]
[1750786842176,6.59816781,144.71,144.67,6.59816781]
[1750786842572,13.50854027,144.71,144.67,6.59816781]
[1750786843309,6.91037246,144.71,144.67,6.59816781]
[1750786845702,6.91037246,144.71,144.68,6.59816781]
[1750786846574,6.91037246,144.71,144.69,6.59816781]
[1750786848209,33.12,144.72,144.64,6.59816781]
[1750786848210,7.12,144.72,144.7,6.59816781]
[1750786850008,14.02992095,144.72,144.7,6.59816781]
[1750786850797,14.02992095,144.72,144.69,6.59816781]
[1750786851899,7.12,144.72,144.69,6.59816781]
[1750786852096,7.12,144.72,144.7,6.59816781]
[1750786853289,7.12,144.72,144.71,6.59816781]
[1750786853996,24.80138859,144.77,144.71,6.59816781]
[1750786853997,7.06,144.77,144.71,6.59816781]
[1750786854196,7.06,144.77,144.74,6.59816781]
[1750786854612,13.9675819,144.77,144.74,6.59816781]
[1750786854902,13.96763188,144.77,144.7,25.56049889]
[1750786855230,20.56579969,144.77,144.72,6.59816781]
[1750786855400,20.56579969,144.77,144.69,6.91111378]
[1750786855600,20.56579969,144.77,144.72,6.59816781]
[1750786856215,37.83457084,144.77,144.72,6.59816781]
[1750786857511,37.83457084,144.77,144.7,6.91070044]
[1750786857712,37.83457084,144.77,144.72,6.59816781]
[1750786858722,6.59816781,144.74,144.69,26.0]
[1750786859026,31.23640303,144.77,144.73,6.59816781]
[1750786859027,5.08902214,144.77,144.73,6.59816781]
[1750786859324,5.08902214,144.77,144.72,6.59816781]
[1750786859325,6.59816781,144.77,144.72,6.59816781]
[1750786859566,6.59816781,144.76,144.71,6.59816781]
[1750786859711,7.0,144.75,144.71,6.59816781]
[1750786860327,7.0,144.75,144.72,6.59816781]
[1750786860533,7.0,144.75,144.73,6.59816781]
[1750786860904,13.90846984,144.75,144.73,6.59816781]
[1750786861508,7.0,144.75,144.73,6.59816781]
[1750786861898,6.59816781,144.74,144.68,8.42323397]
[1750786862104,6.59816781,144.74,144.69,6.59816781]
[1750786862711,13.50758534,144.73,144.68,6.59816781]
[1750786863016,6.59816781,144.71,144.67,6.59816781]
[1750786863221,6.59816781,144.72,144.67,6.59816781]
[1750786863421,29.27401552,144.73,144.68,6.59816781]
[1750786863621,35.87218333,144.73,144.65,6.91294082]
[1750786863836,25.24781667,144.72,144.67,6.59816781]
[1750786864531,6.59816781,144.71,144.67,6.59816781]
[1750786865117,6.91085003,144.7,144.66,6.59816781]
[1750786865334,13.50901784,144.7,144.66,6.59816781]
[1750786865545,13.50901784,144.7,144.65,6.59816781]
[1750786866529,6.59816781,144.69,144.65,6.59816781]
[1750786866734,7.0,144.68,144.65,6.59816781]
[1750786867110,6.5068772,144.71,144.67,6.59816781]
[1750786867111,6.91056899,144.71,144.67,6.59816781]
[1750786867334,7.0,144.7,144.69,6.59816781]
[1750786867736,7.0,144.7,144.65,6.91302501]
[1750786868042,7.0,144.7,144.68,6.59816781]
[1750786869026,20.50920422,144.7,144.65,6.59816781]
[1750786869217,20.50920422,144.7,144.64,6.59816781]
[1750786869218,25.24781667,144.69,144.64,6.59816781]
[1750786869420,6.59816781,144.67,144.63,6.59816781]
[1750786869857,6.59816781,144.67,144.61,1.5457]
[1750786870148,26.0,144.66,144.63,6.59816781]
[1750786870919,32.91314815,144.66,144.63,6.59816781]
[1750786872917,32.91314815,144.66,144.62,6.59816781]
[1750786873743,39.51131596,144.66,144.62,6.59816781]
[1750786874146,32.91314815,144.66,144.63,6.59816781]
[1750786874528,32.91314815,144.66,144.62,6.59816781]
[1750786877744,32.91314815,144.66,144.6,6.91544809]
[1750786877924,32.91314815,144.66,144.62,6.59816781]
[1750786878247,32.91314815,144.66,144.63,6.59816781]
[1750786879161,32.91314815,144.66,144.62,6.59816781]
[1750786880062,32.91314815,144.66,144.63,6.59816781]
[1750786880637,26.0,144.66,144.64,6.59816781]
[1750786880952,32.91276501,144.66,144.63,6.59816781]
[1750786882663,6.91180536,144.68,144.65,6.59816781]
[1750786883019,7.0,144.67,144.65,6.59816781]
[1750786883226,7.0,144.66,144.65,6.59816781]
[1750786883735,6.91154986,144.69,144.65,6.59816781]
[1750786884049,7.0,144.67,144.66,6.59816781]
[1750786884561,7.0,144.72,144.66,6.59816781]
[1750786884744,7.0,144.72,144.7,6.59816781]
[1750786886071,13.9099036,144.72,144.65,6.91323885]
[1750786886370,13.9099036,144.72,144.69,6.59816781]
[1750786890670,13.9099036,144.72,144.68,6.59816781]
[1750786893245,13.9099036,144.72,144.69,6.59816781]
[1750786894469,13.9099036,144.72,144.7,6.59816781]
[1750786895053,7.0,144.72,144.71,6.59816781]
[1750786896482,7.0,144.72,144.71,13.50854027]
[1750786897052,7.0,144.72,144.71,6.59816781]
[1750786899482,7.0,144.72,144.68,1.5057]
[1750786899663,7.0,144.72,144.65,6.91310639]
[1750786899664,20.5081697,144.72,144.65,6.91310639]
[1750786899854,6.59816781,144.71,144.66,6.59816781]
[1750786900060,6.59816781,144.7,144.65,6.59816781]
[1750786900385,6.91085003,144.7,144.66,6.59816781]
[1750786900676,6.91085003,144.7,144.64,1.5109]
[1750786900848,6.91085003,144.7,144.66,6.59816781]
[1750786901054,13.50901784,144.7,144.65,6.59816781]
[1750786901268,6.91085003,144.7,144.65,6.59816781]
[1750786901458,6.59816781,144.69,144.64,1.5109]
[1750786901789,6.59816781,144.68,144.64,6.59816781]
[1750786902279,6.59816781,144.68,144.63,6.59816781]
[1750786902574,24.18797511,144.7,144.63,6.59816781]
[1750786902575,6.91228312,144.67,144.63,6.59816781]
[1750786903174,6.91228312,144.67,144.6,8.53955015]
[1750786903385,6.59816781,144.66,144.61,6.59816781]
[1750786903591,6.94,144.65,144.61,6.59816781]
[1750786904051,6.94,144.65,144.62,6.59816781]
[1750786904450,13.85350511,144.65,144.62,6.59816781]
[1750786904651,13.85350511,144.65,144.6,1.6241]
[1750786904875,13.85350511,144.65,144.62,6.59816781]
[1750786905850,37.73477005,144.65,144.6,6.59816781]
[1750786906276,37.73477005,144.65,144.56,27.5038]
[1750786906466,37.73477005,144.65,144.6,6.59816781]
[1750786907168,6.59816781,144.64,144.6,6.59816781]
[1750786907557,6.91419484,144.63,144.6,6.59816781]
[1750786908781,6.59816781,144.61,144.56,1.5038]
[1750786908983,6.59816781,144.61,144.57,6.59816781]
[1750786909204,6.91419484,144.63,144.6,6.59816781]
[1750786909565,6.91419484,144.63,144.59,6.59816781]
[1750786909871,6.59816781,144.61,144.56,6.59816781]
[1750786910184,6.91419484,144.63,144.56,6.59816781]
[1750786910185,18.64964886,144.62,144.56,6.59816781]
[1750786910367,6.59816781,144.61,144.57,6.59816781]
[1750786910571,51.24781667,144.62,144.57,6.59816781]
[1750786910781,6.91515109,144.61,144.57,6.59816781]
[1750786911701,6.91515109,144.61,144.58,6.59816781]
[1750786912593,6.91515109,144.61,144.57,6.59816781]
[1750786913891,6.94,144.63,144.6,6.59816781]
[1750786914096,6.94,144.63,144.56,6.59816781]
[1750786914097,6.94,144.63,144.62,6.59816781]
[1750786917794,6.94,144.63,144.62,13.51284074]
[1750786918368,6.9,144.68,144.62,13.51284074]
[1750786918590,6.9,144.68,144.66,6.59816781]
[1750786919571,13.81194051,144.68,144.66,6.59816781]
[1750786919897,6.9,144.68,144.66,6.59816781]
[1750786920272,11.9850577,144.72,144.67,6.59816781]
[1750786920476,6.9,144.71,144.67,6.59816781]
[1750786920685,6.9,144.71,144.68,6.59816781]
[1750786921289,6.9,144.71,144.69,6.59816781]
[1750786921607,6.9,144.71,144.7,6.59816781]
[1750786922082,6.9,144.71,144.69,6.59816781]
[1750786922978,13.81044838,144.71,144.69,6.59816781]
[1750786923790,13.81044838,144.71,144.65,1.5607]
[1750786923975,13.81044838,144.71,144.67,6.59816781]
[1750786924680,13.81044838,144.71,144.68,6.59816781]
[1750786925183,6.9,144.71,144.7,6.59816781]
[1750786927803,6.9,144.71,144.7,13.50901784]
[1750786933101,6.9,144.71,144.7,6.91085003]
[1750786933305,6.9,144.71,144.7,13.50901784]
[1750786934307,6.9,144.71,144.7,6.59816781]
[1750786935115,6.9,144.71,144.7,13.50901784]
[1750786937020,6.9,144.71,144.7,6.59816781]
[1750786937804,6.9,144.71,144.7,13.50901784]
[1750786946121,6.9,144.71,144.7,6.91085003]
[1750786946412,6.9,144.71,144.7,13.50901784]
[1750786947798,6.9,144.71,144.7,13.00901784]
[1750786950686,6.4124,144.79,144.7,36.88431073]
[1750786950687,6.86,144.76,144.7,36.88431073]
[1750786950888,6.86,144.76,144.75,6.59816781]
[1750786960031,6.86,144.76,144.75,13.50663067]
[1750786963420,6.86,144.76,144.73,6.90941753]
[1750786963607,6.86,144.76,144.75,6.59816781]
[1750786965033,32.86,144.81,144.75,6.59816781]
[1750786965238,32.86,144.81,144.8,6.59816781]
[1750786966023,39.76592542,144.81,144.8,6.59816781]
[1750786966231,39.76592542,144.81,144.74,6.90894016]
[1750786966427,39.76592542,144.81,144.79,6.59816781]
[1750786966737,39.76592542,144.81,144.74,6.90894016]
[1750786967042,39.76592542,144.81,144.79,6.59816781]
[1750786967729,39.76592542,144.81,144.78,6.59816781]
[1750786968334,39.76592542,144.81,144.75,6.90826106]
[1750786968538,39.76592542,144.81,144.78,6.59816781]
[1750786969137,39.76592542,144.81,144.79,6.59816781]
[1750786969712,32.86,144.81,144.8,6.59816781]
[1750786969929,5.09783753,144.84,144.8,6.59816781]
[1750786970133,6.9039153,144.85,144.83,6.59816781]
[1750786970318,6.9039153,144.85,144.84,6.59816781]
[1750786970525,6.9039153,144.85,144.83,6.59816781]
[1750786971418,6.9039153,144.85,144.82,6.59816781]
[1750786972226,6.9039153,144.85,144.83,6.59816781]
[1750786980450,6.86,144.86,144.84,6.59816781]
[1750786980653,6.86,144.86,144.85,6.59816781]
[1750786980866,13.76321689,144.86,144.85,6.59816781]
[1750786981064,6.86,144.86,144.85,6.59816781]
[1750786981426,52.68843784,144.9,144.85,13.50186128]
[1750786981625,6.82,144.92,144.89,6.59816781]
[1750786981824,6.82,144.92,144.91,6.59816781]
[1750786983541,6.82,144.92,144.88,1.5303]
[1750786983860,30.97125585,144.92,144.85,1.6365]
[1750786984058,26.0,144.89,144.85,1.6365]
[1750786984239,6.59816781,144.88,144.8,8.47739102]
[1750786984440,6.59816781,144.88,144.83,6.59816781]
[1750786985440,13.50090819,144.87,144.83,6.59816781]
[1750786985639,6.90274038,144.87,144.83,6.59816781]
[1750786987336,6.90226394,144.88,144.85,6.59816781]
[1750786987666,6.90226394,144.88,144.86,6.59816781]
[1750786988540,6.90226394,144.88,144.85,6.59816781]
[1750786988855,6.90226394,144.88,144.84,6.59816781]
[1750786990255,6.90226394,144.88,144.85,6.59816781]
[1750786991359,6.900835,144.91,144.83,6.90464305]
[1750786991550,13.49900281,144.91,144.86,6.59816781]
[1750786992246,13.49900281,144.91,144.87,6.59816781]
[1750786993344,6.900835,144.91,144.88,6.59816781]
[1750786994051,13.49900281,144.91,144.87,6.59816781]
[1750786994255,6.900835,144.91,144.87,6.59816781]
[1750786994564,13.49900281,144.91,144.87,6.59816781]
[1750786996147,6.900835,144.91,144.88,6.59816781]
[1750786997559,6.900835,144.91,144.89,6.59816781]
[1750786998578,6.900835,144.91,144.9,6.59816781]
[1750786998961,13.72042628,144.92,144.9,6.59816781]
[1750787000278,13.72042628,144.92,144.86,8.55751511]
[1750787000447,13.72042628,144.92,144.9,6.59816781]
[1750787000773,13.72042628,144.92,144.89,6.59816781]
[1750787001378,20.31859409,144.92,144.88,6.59816781]
[1750787001579,20.31859409,144.92,144.87,6.59816781]
[1750787002052,20.31859409,144.92,144.88,6.59816781]
[1750787003479,37.56949113,144.92,144.86,1.6545]
[1750787003782,37.56949113,144.92,144.88,6.59816781]
[1750787003966,37.56949113,144.92,144.87,6.59816781]
[1750787004759,30.97132332,144.92,144.87,6.59816781]
[1750787004960,6.59816781,144.91,144.87,6.59816781]
[1750787005165,37.56949113,144.92,144.88,6.59816781]
[1750787006983,37.56949113,144.92,144.86,1.6545]
[1750787007302,37.56949113,144.92,144.88,6.59816781]
[1750787013696,30.97132332,144.92,144.88,6.59816781]
[1750787016398,13.72042628,144.92,144.89,6.59816781]
[1750787017497,13.72042628,144.92,144.91,6.59816781]
[1750787017797,6.82,144.92,144.91,6.59816781]
[1750787018507,13.72035881,144.92,144.91,6.59816781]
[1750787018799,13.72035881,144.92,144.9,6.59816781]
[1750787019183,6.82,144.92,144.91,6.59816781]
[1750787020398,6.82,144.92,144.86,1.6545]
[1750787020587,13.41816781,144.92,144.87,6.59816781]
[1750787021485,13.41816781,144.92,144.88,6.59816781]
[1750787022004,13.41816781,144.92,144.87,6.59816781]
[1750787022604,13.41816781,144.92,144.88,6.59816781]
[1750787022605,6.900835,144.91,144.88,6.59816781]
[1750787023500,6.900835,144.91,144.86,1.6545]
[1750787023703,6.900835,144.91,144.86,6.59816781]
[1750787023902,6.59816781,144.9,144.82,1.6538]
[1750787024090,6.59816781,144.9,144.86,6.59816781]
[1750787024402,13.49900281,144.91,144.86,6.59816781]
[1750787024784,30.75109031,144.91,144.86,6.59816781]
[1750787024983,30.75109031,144.91,144.87,6.59816781]
[1750787026806,6.59816781,144.9,144.86,6.59816781]
[1750787027708,24.1529225,144.91,144.86,6.59816781]
[1750787027903,30.75109031,144.91,144.86,6.59816781]
[1750787028210,6.59816781,144.9,144.86,6.59816781]
[1750787028509,24.1529225,144.91,144.86,6.59816781]
[1750787028694,6.59816781,144.9,144.86,6.59816781]
[1750787029884,18.64964886,144.9,144.86,6.59816781]
[1750787030085,18.64964886,144.9,144.87,6.59816781]
[1750787030496,30.75109031,144.91,144.87,6.59816781]
[1750787031810,24.1529225,144.91,144.87,6.59816781]
[1750787032009,24.1529225,144.91,144.84,6.9038804]
[1750787032315,24.1529225,144.91,144.87,6.59816781]
[1750787032693,30.75109031,144.91,144.84,6.9038804]
[1750787032898,30.75109031,144.91,144.87,6.59816781]
[1750787033309,24.1529225,144.91,144.87,6.59816781]
[1750787033796,6.900835,144.91,144.89,6.59816781]
[1750787034203,6.900835,144.91,144.9,6.59816781]
[1750787037097,6.900835,144.91,144.86,6.90307053]
[1750787037298,6.900835,144.91,144.9,6.59816781]
[1750787037925,13.72057332,144.92,144.9,6.59816781]
[1750787040226,6.82,144.92,144.91,6.59816781]
[1750787041035,13.72052403,144.92,144.9,6.59816781]
[1750787042744,13.72052403,144.92,144.88,1.6548]
[1750787043029,37.56958888,144.92,144.85,6.2244]
[1750787043191,37.56958888,144.92,144.88,6.59816781]
[1750787043688,30.97142107,144.92,144.88,6.59816781]
[1750787044032,37.56958888,144.92,144.88,6.59816781]
[1750787044637,13.72052403,144.92,144.91,6.59816781]
[1750787044938,6.82,144.92,144.91,6.59816781]
[1750787046325,6.82,144.92,144.86,50.16125913]
[1750787046526,6.82,144.92,144.91,6.59816781]
[1750787046823,3.46304661,145.01,144.92,1.5971]
[1750787047027,3.46304661,145.01,144.95,6.59816781]
[1750787047028,20.23471953,145.0,144.95,6.59816781]
[1750787047318,18.64964886,144.99,144.95,6.59816781]
[1750787047524,44.64964886,144.99,144.95,6.59816781]
[1750787048317,51.24781667,144.99,144.95,6.59816781]
[1750787048518,6.8975031,144.98,144.92,1.5971]
[1750787048725,26.0,144.95,144.92,6.59816781]
[1750787050024,6.89940665,144.94,144.92,6.59816781]
[1750787051226,6.89940665,144.94,144.93,6.59816781]
[1750787052313,32.89908162,144.95,144.93,6.59816781]
[1750787052524,32.89908162,144.95,144.94,6.59816781]
[1750787055232,32.89908162,144.95,144.93,6.59816781]
[1750787057030,32.89908162,144.95,144.89,6.90162209]
[1750787057332,32.89908162,144.95,144.93,6.59816781]
[1750787058241,32.89908162,144.95,144.89,6.90162209]
[1750787058425,32.89908162,144.95,144.94,6.59816781]
[1750787059741,6.89908162,144.95,144.93,6.59816781]
[1750787060149,6.89908162,144.95,144.88,1.5184]
[1750787060354,6.59816781,144.94,144.9,6.59816781]
[1750787060521,6.74,144.93,144.9,6.59816781]
[1750787061243,6.90035881,144.92,144.9,6.59816781]
[1750787061621,6.90035881,144.92,144.91,6.59816781]
[1750787062833,6.90035881,144.92,144.88,8.42061394]
[1750787063034,6.90035881,144.92,144.91,6.59816781]
[1750787063618,6.90035881,144.92,144.9,6.59816781]
[1750787064652,6.90035881,144.92,144.88,1.5184]
[1750787064820,6.59816781,144.9,144.84,1.5361]
[1750787065024,6.59816781,144.9,144.86,6.59816781]
[1750787065221,25.24781667,144.91,144.86,6.59816781]
[1750787065641,30.30046769,144.91,144.86,6.59816781]
[1750787066130,6.90131124,144.9,144.86,6.59816781]
[1750787067453,5.05265102,144.91,144.89,6.59816781]
[1750787067628,8.1599,144.93,144.84,8.4401034]
[1750787067629,6.74,144.93,144.9,6.59816781]
[1750787067829,6.74,144.93,144.87,6.1769]
[1750787068027,6.74,144.93,144.88,1.5172]
[1750787068250,6.74,144.93,144.92,6.59816781]
[1750787077358,6.74,144.93,144.92,13.49852662]
[1750787077544,6.72,144.98,144.92,13.49852662]
[1750787077747,6.72,144.98,144.97,6.59816781]
[1750787078059,6.72,144.98,144.96,6.59816781]
[1750787078731,13.61770594,144.98,144.95,6.59816781]
[1750787079045,20.21587375,144.98,144.94,6.59816781]
[1750787079861,20.21587375,144.98,144.93,6.59816781]
[1750787080162,30.56192556,144.98,144.94,6.59816781]
[1750787080839,6.72,144.98,144.97,6.59816781]
[1750787084340,13.6175031,144.98,144.96,6.59816781]
[1750787089152,37.45942866,144.98,144.94,6.59816781]
[1750787089368,6.59816781,144.97,144.9,1.6489]
[1750787089665,37.45942866,144.98,144.93,6.59816781]
[1750787090372,6.59816781,144.96,144.9,1.6489]
[1750787090540,6.59816781,144.96,144.91,6.59816781]
[1750787090968,6.59816781,144.95,144.91,6.59816781]
[1750787091651,6.89940665,144.94,144.9,1.6489]
[1750787091861,6.89940665,144.94,144.91,6.59816781]
[1750787093265,6.89940665,144.94,144.9,8.24706781]
[1750787093674,24.14465302,144.96,144.91,6.59816781]
[1750787093977,30.74282083,144.96,144.91,6.59816781]
[1750787098181,30.74282083,144.96,144.92,6.59816781]
[1750787099873,30.74282083,144.96,144.91,6.59816781]
[1750787100354,6.59816781,144.95,144.91,6.59816781]
[1750787101952,30.74282083,144.96,144.91,6.59816781]
[1750787102271,6.89845474,144.96,144.92,6.59816781]
[1750787102893,6.89845474,144.96,144.93,6.59816781]
[1750787104576,6.89845474,144.96,144.91,6.90082257]